Cogmind - Beta 13 @@@ ROGUE MODE // 2024.04.18 @ 20:06:45 Player: Gold Spoon Result: Self-destructed Performance ------------- Evolutions (2) 1000 Regions Visited (5) 1000 Robots Destroyed (29) 145 Value Destroyed (919) 919 Prototype IDs (5) 100 Alien Tech Used (0) 0 Bonus (300) 300 TOTAL SCORE: 3464 Bonus ------- Aligned with FarCom 300 Cogmind --------- Core Integrity 100/550 Matter 275/300 Energy 100/100 System Corruption 2% Temperature Cool (0) Movement Treading (240) Ox1 Location -8/Materials Parts ------- > --- POWER (1) -------- (None) > --- PROPULSION (3) --- Light Treads > --- UTILITY (3) ------ Small Storage Unit 0b10 Alert Chip Hacking Suite > --- WEAPON (4) ------- Firepult > --- INVENTORY (8) ---- Light Nuclear Core Light Nuclear Core Improved Light Armor Plating Peak State ------------ > --- POWER ------------ Light Nuclear Core > --- PROPULSION ------- Improved Hover Unit > --- UTILITY ---------- Small Storage Unit Advanced Visual Processing Unit 0b10 Alert Chip > --- WEAPON ----------- Guided Plasma Cannon Firepult > --- INVENTORY -------- Light Ion Engine Light Nuclear Core Light Nuclear Core Improved Light Armor Plating Hacking Suite [Rating: 44] Favorites ----------- Power Light Ion Engine Engine Light Ion Engine Power Core Light Nuclear Core Propulsion Wheel Treads Light Treads Leg Aluminum Leg Wheel Wheel Hover Unit Improved Hover Unit Utility Small Storage Unit Storage Small Storage Unit Processor 0b10 Alert Chip Hackware Hacking Suite Protection Improved Light Armor Plating Weapon Guided Plasma Cannon Energy Cannon Guided Plasma Cannon Ballistic Gun Light Assault Rifle Slashing Weapon Scythe Build | -11 -10 -10 -10 -9 -8 ------- Run | Yrd Mat Min Exi Min Mat Slots Evolved 4 | . . . . . 4 Power . | . . . . . . Propulsion 1 | . . . . . 1 Utility 1 | . . . . . 1 Weapon 2 | . . . . . 2 Parts Attached 26 | 6 . . 5 . 15 Power 4 | 1 . . . . 3 Engine 3 | 1 . . . . 2 Core 1 | . . . . . 1 Reactor . | . . . . . . Propulsion 6 | 2 . . . . 4 Treads 1 | . . . . . 1 Leg 2 | . . . . . 2 Wheel 2 | 2 . . . . . Hover 1 | . . . . . 1 Flight . | . . . . . . Utility 6 | 1 . . 1 . 4 Device . | . . . . . . Storage 1 | 1 . . . . . Processor 3 | . . . 1 . 2 Hackware 1 | . . . . . 1 Protection 1 | . . . . . 1 Artifact . | . . . . . . Weapon 10 | 2 . . 4 . 4 Energy Gun . | . . . . . . Energy Cannon 5 | . . . 2 . 3 Ballistic Gun 4 | 2 . . 2 . . Ballistic Cannon . | . . . . . . Launcher . | . . . . . . Special Weapon . | . . . . . . Impact Weapon . | . . . . . . Slashing Weapon 1 | . . . . . 1 Piercing Weapon . | . . . . . . Special Melee Weapon . | . . . . . . Unidentified Prototypes 3 | . . . 3 . . Parts Lost 11 | . . . . . 11 Power 3 | . . . . . 3 Propulsion 5 | . . . . . 5 Utility . | . . . . . . Weapon 3 | . . . . . 3 Highest Loss Streak 3 | . . . . . 3 To Critical Strikes . | . . . . . . Average Slot Usage (%) 68 | . 85 85 89 100 55 Engine 6 | . 14 14 14 14 3 Core 2 | . . . . . 3 Wheel 11 | . 28 28 28 28 2 Hover 3 | . . . . . 5 Storage 10 | . 14 14 14 14 9 Processor 11 | . . . 6 14 15 Hackware 1 | . . . . . 1 Energy Cannon 6 | . . . . . 10 Ballistic Gun 11 | . 28 28 25 28 2 Naked Turns . | . . . . . . Heaviest Build 42 | 11 11 11 18 11 42 Greatest Support 26 | 26 26 26 26 26 26 Greatest Overweight (x) 13 | . . . . . 13 Average Overweight (x) . | . . . . . 1 Largest Inventory Capacity 8 | 8 8 8 8 8 8 Average Capacity 7 | 6 8 8 8 8 8 Most Carried 8 | 4 3 3 8 6 7 Average Carried 4 | 1 1 3 4 6 5 Final Capacity 8 | 8 8 8 8 8 8 Final Carried 6 | 1 3 3 6 6 3 Class Distribution -------------------- 71% | Mutant 15% | Pyromaniac-Skirmisher 12% | Skirmisher Dominant Class ---------------- Mutant | -10/Materials Mutant | -10/Mines Mutant | -10/Exiles Mutant | -9/Mines Mutant | -8/Materials Resources | -11 -10 -10 -10 -9 -8 ----------- Run | Yrd Mat Min Exi Min Mat Matter Collected 466 | 243 12 36 . 31 144 Remotely . | . . . . . . Salvage Created 1112 | . 90 . . . 1022 Parts 50 | . 10 . . . 40 Haulers Intercepted . | . . . . . . Recyclers Shooed . | . . . . . . Parts Field Recycled . | . . . . . . Retrieved Matter . | . . . . . . Parts Self-Destructed . | . . . . . . Prevented . | . . . . . . Kills | -11 -10 -10 -10 -9 -8 ------- Run | Yrd Mat Min Exi Min Mat Combat Hostiles Destroyed 25 | . 4 . . . 21 Melee 1 | . . . . . 1 Guns 4 | . 4 . . . . Cannons 10 | . . . . . 10 AOE 5 | . . . . . 5 Classes Destroyed 7 | . 2 . . . 5 Worker 2 | . . . . . 2 Watcher 2 | . . . . . 2 Swarmer 8 | . 3 . . . 5 Grunt 12 | . 1 . . . 11 Brawler 1 | . . . . . 1 Sentry 3 | . . . . . 3 Hunter 1 | . . . . . 1 Best Kill Streak 7 | . 4 . . . 7 Combat Bots Only 5 | . 4 . . . 5 Max Kills in Single Turn 4 | . 1 . . . 4 Gunslinging . | . . . . . . Exploded 3 | . . . . . 3 Melee 1 | . . . . . 1 Uniques/NPCs Destroyed . | . . . . . . Combat | -11 -10 -10 -10 -9 -8 -------- Run | Yrd Mat Min Exi Min Mat Hostile Shots Fired 167 | . 23 . . 6 138 Missed 47 | . 4 . . 2 41 Damage Taken 1561 | . 169 . . 47 1345 Core 493 | . 18 . . 25 450 Absorbed by Shields . | . . . . . . Core Remaining (%) 91 | 100 . . . 82 . Volleys Fired 44 | . 10 . . . 34 Largest 2 | . 2 . . . 1 Hottest 250 | . 40 . . . 250 Shots Fired 54 | . 20 . . . 34 Gun 20 | . 20 . . . . Cannon 34 | . . . . . 34 Launcher . | . . . . . . Special . | . . . . . . Kinetic 20 | . 20 . . . . Thermal 34 | . . . . . 34 Explosive . | . . . . . . Electromagnetic . | . . . . . . Robot Hit Streak 19 | . 4 . . . 19 Robot Miss Streak 3 | . 3 . . . 1 Penetration Max . | . . . . . . Secondary Targets 2 | . 2 . . . . Max Gunslinging Chain 1 | . 1 . . . . Shots Hit Robots 53 | . 9 . . . 44 Core Hits 34 | . 6 . . . 28 Critical Kills . | . . . . . . Critical Parts Destroyed . | . . . . . . Critical Strikes 3 | . . . . . 3 Sever 3 | . . . . . 3 Melee Attacks 12 | . . . . . 12 Impact . | . . . . . . Slashing 12 | . . . . . 12 Piercing . | . . . . . . Sneak Attacks . | . . . . . . Combat Hostiles . | . . . . . . Follow-up Attacks . | . . . . . . Damage Inflicted 2155 | . 99 . . . 2056 Guns 99 | . 99 . . . . Cannons 1208 | . . . . . 1208 Explosions 532 | . . . . . 532 Melee 316 | . . . . . 316 Ramming . | . . . . . . Kinetic 99 | . 99 . . . . Thermal 1740 | . . . . . 1740 Explosive . | . . . . . . Electromagnetic . | . . . . . . Impact . | . . . . . . Slashing 316 | . . . . . 316 Piercing . | . . . . . . Highest Corruption 2 | . . . . . 2 Average Corruption 2 | . . . . . 2 Corruption Purged . | . . . . . . Corruption Blocked . | . . . . . . Effects 14 | . . . . . 14 Message Errors 5 | . . . . . 5 Matter Fused 3 | . . . . . 3 Heat Flow Errors 1 | . . . . . 1 Energy Discharges 2 | . . . . . 2 Parts Rejected 2 | . . . . . 2 Data Loss (major) 1 | . . . . . 1 Overload Shots . | . . . . . . Overflow Damage 67 | . . . . . 67 Projectiles 32 | . . . . . 32 Explosions . | . . . . . . Melee 35 | . . . . . 35 Knockbacks . | . . . . . . Impact . | . . . . . . Kinetic . | . . . . . . Secondary . | . . . . . . Self-Inflicted Damage 58 | . . . . . 58 Shots 5 | . . . . . 5 Rammed . | . . . . . . Targets Rammed . | . . . . . . Kicked . | . . . . . . Crushed . | . . . . . . Highest Temperature 534 | . 12 . . . 534 Average Temperature 146 | . 6 . . . 152 Received Heat Transfer 630 | . 54 . . 27 549 Effects 7 | . . . . . 7 Shutdowns 1 | . . . . . 1 Interference 3 | . . . . . 3 Damage (minor) 3 | . . . . . 3 Siege Activations . | . . . . . . Robots Corrupted . | . . . . . . Combat Hostiles . | . . . . . . Parts Fried . | . . . . . . Impact Corruptions . | . . . . . . Robots Melted 5 | . . . . . 5 Combat Hostiles 5 | . . . . . 5 Parts Melted 15 | . . . . . 15 Heat Transferred 5760 | . . . . . 5760 Parts Sabotaged . | . . . . . . Parts Stolen . | . . . . . . Parts Stripped . | . . . . . . Power Chain Reactions . | . . . . . . Alert | -11 -10 -10 -10 -9 -8 ------- Run | Yrd Mat Min Exi Min Mat Peak Influence 226 | . 145 56 . 60 226 Initial 56 | . . 56 . . 23 Average 70 | . 79 56 . 40 79 Maximum Alert Level 1 | . . . . . 1 Low Security (%) 94 | 100 100 100 . 100 91 Level 1 5 | . . . . . 8 Level 2 . | . . . . . . Level 3 . | . . . . . . Level 4 . | . . . . . . Level 5 . | . . . . . . High Security . | . . . . . . Max Security . | . . . . . . Squads Dispatched 6 | . 2 . . . 4 Investigation 4 | . 1 . . . 3 Extermination . | . . . . . . Reinforcement 2 | . 1 . . . 1 Assault . | . . . . . . Garrison . | . . . . . . Intercept . | . . . . . . Searches Triggered . | . . . . . . Construction Impeded 1 | . . . . . 1 Haulers Reinforced . | . . . . . . Active Scanning Responses . | . . . . . . Cargo Convoy Interrupts . | . . . . . . Stealth | -11 -10 -10 -10 -9 -8 --------- Run | Yrd Mat Min Exi Min Mat Distress Signals 4 | . 2 . . . 2 Communications Jammed . | . . . . . . Distress Signals . | . . . . . . Times Spotted 51 | . 11 . . 4 36 Peak Tracking Total 9 | . 9 . . 3 8 Tactical Retreats 5 | . . . . 2 3 Traps | -11 -10 -10 -10 -9 -8 ------- Run | Yrd Mat Min Exi Min Mat Traps Triggered 2 | . . . . . 2 Indirectly . | . . . . . . Trap Hack Attempts . | . . . . . . Triggered . | . . . . . . Disarmed . | . . . . . . Reprogrammed . | . . . . . . Reused . | . . . . . . Traps Extracted . | . . . . . . Installed . | . . . . . . Triggered . | . . . . . . Machines | -11 -10 -10 -10 -9 -8 ---------- Run | Yrd Mat Min Exi Min Mat Machines Disabled 1 | . . . . . 1 Max in Single Turn 1 | . . . . . 1 Garrison Access 1 | . . . . . 1 Machines Repaired . | . . . . . . Machines Dismantled . | . . . . . . Machines Sabotaged . | . . . . . . Overloaded Fab Kills . | . . . . . . Hacking | -11 -10 -10 -10 -9 -8 --------- Run | Yrd Mat Min Exi Min Mat Machines Accessed 6 | . 1 1 . . 4 Terminals 5 | . 1 1 . . 3 Fabricators . | . . . . . . Repair Stations . | . . . . . . Recycling Units . | . . . . . . Scanalyzers . | . . . . . . Garrison Access 1 | . . . . . 1 Total Hacks 13 | . 3 1 . . 9 Successful 4 | . . 1 . . 3 Failed 9 | . 3 . . . 6 Catastrophic 2 | . 1 . . . 1 Database Lockouts . | . . . . . . Manual 1 | . . . 1 . . Terminals 11 | . 3 1 . . 7 Fabricators . | . . . . . . Repair Stations . | . . . . . . Recycling Units . | . . . . . . Scanalyzers . | . . . . . . Garrison Access 2 | . . . . . 2 Terminal Hacks 3 | . . 1 . . 2 Robot Analysis 1 | . . . . . 1 Prototype ID Bank 1 | . . . . . 1 Dispatch Records 1 | . . 1 . . . Fabricator Hacks . | . . . . . . Repair Station Hacks . | . . . . . . Recycling Unit Hacks . | . . . . . . Scanalyzer . | . . . . . . Garrison Access Hacks 1 | . . . . . 1 Seal Access 1 | . . . . . 1 Unauthorized Hacks . | . . . . . . Terminals . | . . . . . . Fabricators . | . . . . . . Repair Stations . | . . . . . . Recycling Units . | . . . . . . Scanalyzers . | . . . . . . Garrison Access . | . . . . . . Data Cores Recovered . | . . . . . . Used . | . . . . . . Hacking Detections 3 | . 1 . . . 2 Full Trace Events 3 | . 1 . . . 2 Feedback Events . | . . . . . . Feedback Blocked . | . . . . . . Robot Schematics Acquired . | . . . . . . Robots Built . | . . . . . . Authchips . | . . . . . . Time . | . . . . . . Total Robot Build Rating . | . . . . . . Part Schematics Acquired . | . . . . . . Parts Built . | . . . . . . Authchips . | . . . . . . Time . | . . . . . . Total Part Build Rating . | . . . . . . Parts Repaired . | . . . . . . Time . | . . . . . . Parts Recycled . | . . . . . . Recycled Matter . | . . . . . . Retrieved Matter . | . . . . . . Retrieved Components . | . . . . . . Parts Scanalyzed . | . . . . . . Part Schematics Acquired . | . . . . . . Parts Damaged . | . . . . . . Bothacking | -11 -10 -10 -10 -9 -8 ------------ Run | Yrd Mat Min Exi Min Mat Used RIF Installer . | . . . . . . Robots Hacked . | . . . . . . Non-combat . | . . . . . . Combat . | . . . . . . Robot Hacks Applied . | . . . . . . Relay Couplers Released . | . . . . . . Fabnet Peak Effective % . | . . . . . . Robots Rewired . | . . . . . . Allies Hacked . | . . . . . . Hacks Repelled . | . . . . . . Allies | -11 -10 -10 -10 -9 -8 -------- Run | Yrd Mat Min Exi Min Mat Total Allies . | . . . . . . Largest Group . | . . . . . . Highest-Rated Group . | . . . . . . Highest-Rated Ally . | . . . . . . Total Orders . | . . . . . . Ally Attacks . | . . . . . . Total Damage . | . . . . . . Kills . | . . . . . . Allies Corrupted . | . . . . . . Allies Melted . | . . . . . . Intel | -11 -10 -10 -10 -9 -8 ------- Run | Yrd Mat Min Exi Min Mat Robot Analysis Total 1 | . . . . . 1 Derelict Logs Recovered 2 | . . 1 . 1 . Drone Launches . | . . . . . . Drone Recoveries . | . . . . . . Exploration | -11 -10 -10 -10 -9 -8 ------------- Run | Yrd Mat Min Exi Min Mat Turns Passed 1911 | 49 90 150 210 197 1215 Spaces Moved 1296 | 45 67 167 223 219 575 Core 25 | 11 . . . . 14 Treads 8 | . . . . . 8 Legs 35 | . . . . . 35 Wheels 986 | 34 67 167 223 219 276 Hover 242 | . . . . . 242 Flight . | . . . . . . Fastest Speed 50 | 50 90 90 90 90 60 Average Speed 120 | 80 90 90 90 90 160 Slowest Speed 700 | 90 90 90 90 90 700 Overloaded Moves . | . . . . . . Propulsion Burnouts . | . . . . . . Robots Hopped . | . . . . . . Cave-ins Triggered . | . . . . . . Exploration Rate (%) 32 | 3 16 35 41 58 43 Regions Visited 5 Branch Regions 3 Pre-discovered Areas 1 | . . 1 . . . Known Exits Taken . | . . . . . . Unknown Exits Taken 5 | 1 1 1 1 1 . Scrap Searched 3 | . . 2 . 1 . Spaces Dug . | . . . . . . Terrain Destroyed 11 | . . . . . 11 Melee . | . . . . . . Projectile . | . . . . . . AOE 11 | . . . . . 11 Terrain Rammed . | . . . . . . Walls Destroyed . | . . . . . . Machines Disabled . | . . . . . . Actions | -11 -10 -10 -10 -9 -8 --------- Run | Yrd Mat Min Exi Min Mat Total 1569 | 57 78 166 234 218 816 Wait 165 | . . . . . 165 Move 1291 | 44 66 166 222 218 575 Hop . | . . . . . . Pick Up 25 | 7 2 . 3 . 13 Fast Attach . | . . . . . . Attach 22 | 6 . . 5 . 11 Detach 4 | . . . 4 . . Swap 4 | . . . . . 4 Drop 2 | . . . . . 2 Fire 44 | . 10 . . . 34 Melee 12 | . . . . . 12 Ram . | . . . . . . Kick . | . . . . . . Crush . | . . . . . . Escape Stasis . | . . . . . . Rewire . | . . . . . . Trap . | . . . . . . Miscellaneous . | . . . . . . Route ------- -11/Scrapyard -10/Materials -10/Mines -10/Exiles -9/Mines -8/Materials History --------- Turn | Location | Event 6 | -11/Scrapyard | Discovered new exit (range 15) 50 | -11/Scrapyard | Entered Materials 89 | -10/Materials | Discovered new exit (range 15) 140 | -10/Materials | Entered Mines 204 | -10/Mines | Assembled infested the area 215 | -10/Mines | Learned location of Storage (-8) 245 | -10/Mines | Discovered new exit (range 5) 271 | -10/Mines | Met 8R-AWN 290 | -10/Mines | Entered Exiles 314 | -10/Exiles | Welcomed by 8R-AWN 317 | -10/Exiles | Build established: Mutant 329 | -10/Exiles | Met EX-HEX 354 | -10/Exiles | Met EX-BIN 371 | -10/Exiles | Aligned with FarCom system 372 | -10/Exiles | Given EX-Vault access code 392 | -10/Exiles | Opened EX-Vault 396 | -10/Exiles | Found Prototype Energy Cannon 398 | -10/Exiles | Identified Firepult 403 | -10/Exiles | Found Prototype Energy Cannon 404 | -10/Exiles | Identified Gui. Plasma Cannon 409 | -10/Exiles | Found Prototype Processor 410 | -10/Exiles | Identified 0b10 Alert Chip 433 | -10/Exiles | Warned to stay clear of 0b10 Research branches 471 | -10/Exiles | Learned about 8R-AWN's background 490 | -10/Exiles | Discovered new exit (range 14) 500 | -10/Exiles | Stole three prototypes: 0b10 Alert Chip, Gui. Plasma Cannon, Firepult 500 | -10/Exiles | Entered Mines 654 | -9/Mines | Discovered new exit (range 15) 681 | -9/Mines | Learned Materials interactive machine intel 697 | -9/Mines | Entered Materials 697 | -8/Materials | Evolved 4 slots: Propulsion x1, Utility x1, Weapon x2 698 | -8/Materials | Loaded intel: 19 interactive machine locations 1026 | -8/Materials | Lost 3 parts (1p1n1w) 1791 | -8/Materials | Core integrity fell below 50% 1885 | -8/Materials | Core integrity fell below 20% 1904 | -8/Materials | Lost 3 parts (2n1w) 1912 | -8/Materials | Self-destructed Last Messages --------------- Processing Tank disabled. Imp. Heat Sink melted. G-47 Trooper destroyed. ALERT: Construction progress impeded, dispatching reinforcements to local area. Flight Unit melted. S-10 Pest destroyed. Melted Aluminum Leg. B-36 Bruiser critical meltdown. G-47 Trooper critical meltdown. U-05 Engineer lays Concrete. Acquired Lgt. Treads. U-05 Engineer lays Concrete. >WBFXSWUJUOIY692TOW6LGN7K U-05 Engineer lays Concrete. W-25 Informer sends out distress signal. U-05 Engineer lays Concrete. Penetrated by Slug. U-05 Engineer destroyed. U-05 Engineer lays Concrete. Map ----- +----------------------------------------------------+ | #???# #### #??????????????????????? | | """ """ #???# #??##########???????????????????? | | """ """ #???# # ???????????????????? | | """ """ #???# + """ ?????????????????????? | | #???# # "R """ ??????????????????????? | | = #???# #?""" """???????????????????????? | | ##########???# #???? """???????????????????????? | | ?????######### #?????? ????????????????????????? | | ?????# # #???????????????????????????????? | | ?????# # #???????????????????????????????? | | ?????# """"" + #???????????????????????????????? | | ?????# """"" # ##????????????????????????????T?? | | ?????? """"" # T#??????????????????????????????? | | ??????######## ##??????????????????????????????? | | ???????# # #???????????????????????????????? | | ???????# """ # #???????????????????????????????? | | ???????# """ # #??????#################????????? | | ???????# """ # ######## ????????? | | ???????# """ # ????????? | | ???????# + ???????????? | | ???????# """ # ##???????????????????? | | ???????# """ #/########## #???T????????????????? | | ???????# """ #???"""""??# #??????????????T?????? | | ???????# """ #???""T""??# =!#????????Y???????????? | | ???????# #??????????#*%|#????????????????????? | | ???????# #??????????#@! #????????????????????? | | ???????#######??????????# #????????????????????? | | ????????????????????????# ################?????? | | ????????????????????????# #?????? | | ????????????????????????# "#????? | | ????????????????????????# "#????? | | ????????????????????????# "#????? | | ??????????????????###"###h [ % ####### | | ??????????????? % Y u%* %* # | | ?????????????? s = * % [ # | | ??????????????? "" %! % """ # | | ???????????????" """ = "" % R" # | | ???????????????# """" " "" """ # | | ???????????????? ? w # | | ????????????????? ? ##+#+## | | ?????????????????? | | ?????????????????? " | | ?????????????????? "%" | | ?????????????????? ######### ### ######## | | ??????????????????? #????????# #?# # !# | | ?????????????????????????????#! !#?# # # | | ?????????????????????????????##!!!!##?# + """ # | | ??????????????????????????????######??# # """ # | | ??????????????????????????????????????# # """ # | | ??????????????????????????????????????# # # | +----------------------------------------------------+ Best States ------------- Heat Dissipation 31 Energy Generation 14 Energy Capacity 160 Matter Stores 300 Matter Capacity 300 Sight Range 20 Terrain Scan Density 10 Armor Coverage 150 Evasion (%) 55 Recoil Reduction 1 Offensive Hacking 10 Item Schematics ----------------- None Robot Schematics ------------------ None Fabricated ------------ Nothing Alien Tech Used ----------------- None Achievements -------------- None Challenges ------------ None Game ------ Seed MachineGravmagMonowheel Manual? 0 Play Time 00:17:19 Cumulative 11.0 hours Start 2024.04.18 @ 19:49:50 End 2024.04.18 @ 20:06:45 Sessions 1 Manual Loads 0 Difficulty Rogue Special Mode None Game No. 18 Rogue 16 Adventurer 2 Explorer 0 Win Type - Total 0 Types 0/0/0/0/0/0/0/0/0 Lore% 18 Gallery% 13 Achievement% 15 Wizard Run 0 Options --------- Layout 1 ASCII 0 Keyboard 0 Movement Mouse Keybinds 0 Fullscreen 1 Font 24/Smallcaps Map View 50x40 Zoom Use 0% Tactical HUD 0 Map Filters NONE Filters NONE Steam 1 RUN: 49af6fec-6fa4-4728-8298-0efc03031487